bitfinex/quotes_SOLUSD_20250201
["timestamp","ask_amount","ask_price","bid_price","bid_amount"]
[1738405142005,0.03,227.66,227.65,13.66282853]
[1738405142224,0.03,227.66,227.65,22.47374467]
[1738405142916,0.03,227.66,227.65,26.86644467]
[1738405143314,0.03,227.66,227.65,30.15000108]
[1738405143501,82.6,227.71,227.69,13.41184853]
[1738405143848,82.6,227.71,227.7,21.56407531]
[1738405144016,82.6,227.71,227.7,54.17298243]
[1738405144718,82.6,227.71,227.7,58.56468243]
[1738405145233,82.6,227.78,227.74,20.0]
[1738405145409,82.6,227.77,227.76,8.15222678]
[1738405145611,82.6,227.77,227.75,8.15222678]
[1738405147124,8.15222678,227.76,227.7,3.04]
[1738405147301,1.66079,227.83,227.66,6.82178344]
[1738405147302,8.15222678,227.72,227.66,6.82178344]
[1738405147507,90.75222678,227.71,227.66,6.82178344]
[1738405147911,82.6,227.7,227.66,6.82178344]
[1738405148111,8.15222678,227.68,227.66,6.82178344]
[1738405148308,8.15222678,227.68,227.67,3.28355641]
[1738405148634,8.15222678,227.69,227.67,3.28355641]
[1738405149223,82.6,227.7,227.67,3.28355641]
[1738405149412,90.75222678,227.7,227.65,3.04]
[1738405149612,8.15222678,227.69,227.65,3.04]
[1738405149823,90.75222678,227.7,227.65,3.04]
[1738405150037,82.6,227.7,227.65,3.04]
[1738405150233,82.6,227.7,227.66,3.28514066]
[1738405151224,82.6,227.7,227.67,3.28514066]
[1738405151750,82.6,227.69,227.68,8.15222678]
[1738405153049,82.6,227.69,227.68,11.43736744]
[1738405156451,0.03,227.7,227.68,11.43736744]
[1738405156645,0.03,227.7,227.69,25.95597531]
[1738405157336,0.03,227.7,227.69,64.97936243]
[1738405157646,0.03,227.7,227.69,32.37045531]
[1738405158239,0.03,227.7,227.69,35.65559597]
[1738405159726,0.03,227.7,227.69,35.22059596]
[1738405161650,0.03,227.7,227.69,34.96961596]
[1738405163951,0.03,227.7,227.69,28.80611596]
[1738405165051,0.03,227.7,227.69,29.80611596]
[1738405165252,0.03,227.7,227.69,28.80611596]
[1738405173367,0.03,227.7,227.69,29.80611596]
[1738405174668,0.03,227.7,227.69,62.79149308]
[1738405174831,0.03,227.7,227.69,63.45000399]
[1738405175236,82.6,227.77,227.76,8.15222678]
[1738405176662,82.6,227.77,227.76,11.43736744]
[1738405177363,82.6,227.77,227.76,3.28514066]
[1738405177567,82.6,227.77,227.76,11.43736744]
[1738405178236,82.6,227.77,227.76,29.23971597]
[1738405178559,0.03,227.79,227.78,20.0]
[1738405178769,0.03,227.79,227.78,28.15222678]
[1738405178942,0.03,227.79,227.78,8.15222678]
[1738405179263,0.03,227.79,227.78,28.15222678]
[1738405179450,0.03,227.79,227.78,31.43736744]
[1738405179635,0.03,227.79,227.78,23.28514066]
[1738405181168,0.03,227.79,227.78,41.08718919]
[1738405182063,0.03,227.79,227.78,21.08718919]
[1738405182440,0.03,227.79,227.78,21.33816919]
[1738405184257,0.03,227.79,227.78,21.46365919]
[1738405184569,0.03,227.79,227.78,22.46365919]
[1738405185073,0.03,227.79,227.78,23.58914919]
[1738405185456,0.0001,227.79,227.78,56.19805631]
[1738405185864,0.0001,227.79,227.78,23.58914919]
[1738405186359,0.03,227.86,227.82,21.0]
[1738405186559,0.03,227.86,227.85,21.56407531]
[1738405187276,0.03,227.86,227.85,8.15222678]
[1738405187855,0.03,227.86,227.85,11.43736744]
[1738405188362,0.03,227.86,227.85,30.61448597]
[1738405188861,0.03,227.86,227.85,30.48899597]
[1738405189171,0.03,227.86,227.85,29.48899597]
[1738405189378,0.03,227.86,227.85,30.14708214]
[1738405193664,0.03,227.86,227.85,3.28514066]
[1738405194870,0.03,227.86,227.84,3.28514066]
[1738405195364,0.03,227.86,227.85,20.0]
[1738405195559,0.03,227.86,227.84,3.28514066]
[1738405195780,8.18222678,227.86,227.84,3.28514066]
[1738405196088,8.18222678,227.86,227.83,3.28514066]
[1738405196089,0.03,227.86,227.83,3.28514066]
[1738405197365,0.03,227.86,227.85,8.15222678]
[1738405197679,0.03,227.86,227.84,8.15222678]
[1738405197868,0.03,227.86,227.83,11.43736744]
[1738405198990,0.03,227.86,227.84,3.28514066]
[1738405199373,0.03,227.86,227.85,8.15222678]
[1738405199676,0.03,227.86,227.85,12.71371393]
[1738405200557,0.03,227.86,227.85,15.99885459]
[1738405201586,0.03,227.86,227.85,3.28514066]
[1738405202073,0.03,227.86,227.84,12.71371393]
[1738405202272,0.03,227.86,227.85,12.71371393]
[1738405202471,0.03,227.86,227.84,26.12556246]
[1738405202885,0.03,227.86,227.84,12.71371393]
[1738405203088,82.6,227.85,227.81,12.71371393]
[1738405203265,82.6,227.85,227.79,15.73371393]
[1738405203466,82.6,227.85,227.82,20.0]
[1738405203774,82.6,227.85,227.81,12.71371393]
[1738405205199,82.6,227.85,227.82,32.71371393]
[1738405208077,0.03,227.86,227.8,35.73371393]
[1738405208078,82.6,227.84,227.8,35.73371393]
[1738405208398,82.6,227.84,227.8,32.71371393]
[1738405208772,82.6,227.84,227.8,12.71371393]
[1738405208998,82.6,227.84,227.79,3.083]
[1738405209300,82.6,227.84,227.8,12.71371393]
[1738405209906,82.6,227.84,227.79,0.063]
[1738405210194,1.5237,227.83,227.79,0.063]
[1738405210398,1.47106498,227.83,227.79,0.063]
[1738405211094,82.6,227.82,227.79,0.063]
[1738405211280,95.31371393,227.82,227.79,0.063]
[1738405211479,82.6,227.82,227.79,0.063]
[1738405213399,95.31371393,227.82,227.79,0.063]
[1738405213598,12.71371393,227.81,227.79,0.063]
[1738405213799,82.6,227.8,227.79,0.063]
[1738405214595,12.71371393,227.8,227.79,0.063]
[1738405215404,7.6404,227.79,227.69,12.77671393]
[1738405215610,12.71371393,227.76,227.69,12.77671393]
[1738405215788,12.71371393,227.74,227.69,0.063]
[1738405216382,12.71371393,227.73,227.69,0.063]
[1738405217083,12.71371393,227.72,227.69,0.063]
[1738405217587,12.71371393,227.73,227.69,0.063]
[1738405218190,12.71371393,227.74,227.69,0.063]
[1738405218682,12.71371393,227.75,227.69,0.063]
[1738405218905,12.71371393,227.74,227.69,0.063]
[1738405219102,12.71371393,227.73,227.69,0.063]
[1738405219709,8.15160941,227.73,227.69,0.063]
[1738405222986,82.6,227.72,227.69,0.063]
[1738405225910,82.6,227.72,227.69,8.21460941]
[1738405226217,82.6,227.72,227.71,8.15160941]
[1738405227416,82.6,227.72,227.7,8.15160941]
[1738405227713,82.6,227.72,227.69,0.063]
[1738405228916,82.6,227.71,227.69,0.063]
[1738405230997,82.6,227.71,227.69,8.21460941]
[1738405234402,82.6,227.71,227.69,0.063]
[1738405234822,82.6,227.7,227.69,0.063]
[1738405238519,82.6,227.7,227.69,8.21460941]
[1738405239024,82.6,227.7,227.69,0.063]
[1738405246702,8.15160941,227.73,227.69,0.063]
[1738405247106,8.15160941,227.72,227.69,0.063]
[1738405247632,8.15160941,227.71,227.69,0.063]
[1738405248326,8.15160941,227.72,227.69,0.063]
[1738405248909,7.6309814,227.72,227.69,0.063]
[1738405250535,8.15160941,227.71,227.69,0.063]
[1738405252138,8.15160941,227.72,227.69,0.063]
[1738405252321,8.15160941,227.77,227.69,8.21460941]
[1738405252639,90.75160941,227.76,227.69,8.21460941]
[1738405252833,8.15160941,227.75,227.69,0.063]
[1738405254316,8.15160941,227.75,227.69,0.01036498]
[1738405257324,82.6,227.76,227.69,0.01036498]
[1738405257325,8.15160941,227.71,227.69,0.01036498]
[1738405258741,82.6,227.7,227.69,0.01036498]
[1738405259922,90.75160941,227.7,227.69,0.01036498]
[1738405260323,82.6,227.7,227.69,0.01036498]
[1738405264653,8.15160941,227.75,227.69,0.01036498]
[1738405268461,8.15160941,227.73,227.69,0.01036498]
[1738405270256,8.15160941,227.71,227.69,0.01036498]
[1738405272747,8.15160941,227.7,227.69,0.01036498]
[1738405272933,8.15160941,227.71,227.69,0.01036498]
[1738405277271,8.15160941,227.72,227.69,0.01036498]
[1738405278941,7.72189618,227.72,227.69,0.01036498]
[1738405279572,8.18160941,227.75,227.69,0.01036498]
[1738405281063,8.15160941,227.73,227.69,0.01036498]
[1738405282174,8.15160941,227.72,227.69,0.01036498]
[1738405282557,8.15160941,227.73,227.69,0.01036498]
[1738405283458,0.03,227.73,227.69,0.01036498]
[1738405285872,8.15160941,227.72,227.69,0.01036498]
[1738405286077,0.03,227.73,227.69,0.01036498]
[1738405286951,8.15160941,227.72,227.69,0.01036498]
[1738405287165,8.15160941,227.71,227.69,0.01036498]
[1738405291577,0.03,227.73,227.69,0.01036498]
[1738405291578,8.15160941,227.72,227.69,0.01036498]
[1738405291975,0.03,227.73,227.69,8.16197439]
[1738405292183,0.03,227.73,227.71,8.15160941]
[1738405292496,0.03,227.73,227.72,21.56345794]
[1738405292674,0.03,227.73,227.72,22.56345794]
[1738405292989,0.03,227.73,227.72,21.56345794]
[1738405293183,0.03,227.73,227.72,22.56345794]
[1738405293559,0.03,227.73,227.72,26.95475794]
[1738405294656,0.03,227.73,227.72,8.15160941]
[1738405294856,0.03,227.73,227.7,6.82178344]
[1738405295285,0.03,227.73,227.72,20.0]
[1738405296560,0.03,227.73,227.7,6.82178344]
[1738405296764,8.15160941,227.71,227.7,6.82178344]
[1738405298193,8.15160941,227.71,227.69,0.01036498]
[1738405298403,8.15160941,227.7,227.69,0.01036498]
[1738405298760,8.15160941,227.71,227.69,0.01036498]
[1738405300196,82.6,227.7,227.69,0.01036498]
[1738405300495,8.15160941,227.71,227.69,0.01036498]
[1738405300688,8.15160941,227.7,227.69,0.01036498]
[1738405303695,54.29538558,227.7,227.69,0.01036498]
[1738405303891,0.12549,227.66,227.62,0.063]
[1738405304191,8.15160941,227.63,227.59,6.5810702]
[1738405304406,8.15160941,227.61,227.59,6.5810702]
[1738405305493,8.15160941,227.61,227.56,0.063]
[1738405306060,8.15160941,227.58,227.56,0.063]
[1738405307399,8.15160941,227.57,227.56,0.063]
[1738405307572,90.75160941,227.57,227.56,0.063]
[1738405309277,8.15160941,227.57,227.56,0.063]
[1738405309478,9.74110941,227.57,227.56,0.063]
[1738405311089,8.15160941,227.6,227.56,0.063]
[1738405311279,8.15160941,227.61,227.56,0.063]
[1738405311598,8.15160941,227.6,227.56,0.063]
[1738405316906,8.15160941,227.62,227.56,0.063]
[1738405317075,8.15160941,227.61,227.56,0.063]
[1738405318894,8.15160941,227.62,227.56,0.063]
[1738405319107,0.03,227.61,227.56,0.063]
[1738405319398,0.03,227.61,227.56,8.21460941]
[1738405321182,0.03,227.61,227.56,0.063]
[1738405321691,8.15160941,227.6,227.56,0.063]
[1738405324606,8.15160941,227.59,227.56,0.063]
[1738405324791,8.15160941,227.57,227.56,0.063]
[1738405326518,8.15160941,227.58,227.56,0.063]
[1738405326999,8.15160941,227.6,227.56,0.063]
[1738405327207,8.18160941,227.61,227.56,0.063]
[1738405327402,8.15160941,227.6,227.56,0.063]
[1738405327607,8.15160941,227.59,227.56,0.063]
[1738405341125,8.15160941,227.57,227.56,0.063]
[1738405341716,8.15160941,227.59,227.56,0.063]
[1738405344523,82.6,227.58,227.56,0.063]
[1738405344824,82.6,227.58,227.57,8.15160941]
[1738405347803,0.03,227.61,227.57,8.15160941]
[1738405349827,0.03,227.61,227.58,8.15160941]
[1738405351125,0.03,227.61,227.6,8.15160941]
[1738405352236,0.03,227.61,227.6,12.54520941]
[1738405352726,0.03,227.61,227.6,25.95705794]
[1738405353729,0.03,227.61,227.6,27.49675794]
[1738405354829,0.03,227.61,227.6,19.34514853]
[1738405356138,0.03,227.61,227.6,20.34514853]
[1738405357038,0.03,227.61,227.6,22.38048816]
[1738405358336,82.6,227.71,227.68,20.0]
[1738405358509,82.6,227.71,227.7,8.15160941]
[1738405362134,0.03,227.72,227.7,12.54320941]
[1738405362436,0.03,227.72,227.71,13.41184853]
[1738405364111,0.03,227.72,227.71,14.07041797]
[1738405365222,0.03,227.72,227.71,15.44688797]
[1738405365223,0.0001,227.72,227.71,15.44688797]
[1738405365439,0.03,227.73,227.72,18.92863853]
[1738405365440,0.0001,227.73,227.72,18.92863853]
[1738405365637,0.0101,227.75,227.74,14.66282853]
[1738405365827,0.0101,227.75,227.74,15.32123969]
[1738405366029,0.0101,227.75,227.74,23.4728491]
[1738405367541,0.0101,227.75,227.74,27.8637491]
[1738405370926,0.0101,227.75,227.74,26.95435794]
[1738405371229,0.0101,227.75,227.74,29.97435794]
[1738405372548,0.0101,227.75,227.74,30.22533794]
[1738405372750,0.0101,227.75,227.74,30.88379255]
[1738405373346,0.0101,227.75,227.74,31.00928255]
[1738405374345,0.0101,227.75,227.74,31.13477255]
[1738405374844,0.03,227.8,227.78,29.52807941]
[1738405375037,0.03,227.8,227.78,30.18637383]
[1738405375545,0.03,227.8,227.79,1.37647]
[1738405375744,0.03,227.84,227.83,1.25098]
[1738405375938,0.03,227.84,227.83,23.47259291]
[1738405376131,0.03,227.84,227.83,22.47259291]
[1738405376332,0.03,227.84,227.83,23.34710291]
[1738405376539,0.03,227.84,227.83,23.22161291]
[1738405376927,0.03,227.84,227.83,26.61081291]
[1738405377129,0.03,227.84,227.83,27.61081291]
[1738405377834,0.03,227.84,227.83,26.61081291]
[1738405378231,0.03,227.84,227.83,27.61081291]
[1738405378846,0.03,227.84,227.83,29.11277291]
[1738405379528,0.03,227.86,227.83,29.11277291]
[1738405379529,0.03,227.86,227.85,2.37647]
[1738405379753,0.03,227.86,227.85,11.18618954]
[1738405380650,0.03,227.86,227.85,28.98683807]
[1738405383754,0.03,227.86,227.85,27.86134807]
[1738405384356,0.03,227.86,227.85,26.86134807]
[1738405384543,0.03,227.86,227.85,27.86134807]
[1738405384738,0.03,227.86,227.85,8.15160941]
[1738405384944,0.03,227.86,227.85,3.02]
[1738405385443,0.03,227.86,227.85,20.0]
[1738405385763,0.03,227.86,227.82,3.02]
[1738405386058,0.03,227.86,227.83,20.0]
[1738405386233,0.03,227.86,227.82,3.02]
[1738405386436,0.03,227.86,227.84,20.0]
[1738405386766,90.75160941,227.85,227.79,3.02]
[1738405386933,8.15160941,227.84,227.79,3.02]
[1738405387258,8.15160941,227.83,227.8,20.0]
[1738405388161,8.15160941,227.83,227.79,3.02]
[1738405388457,8.15160941,227.84,227.8,20.0]
[1738405388863,8.15160941,227.84,227.8,20.063]
[1738405389841,90.75160941,227.85,227.81,20.0]
[1738405390042,82.6,227.85,227.84,20.0]
[1738405390244,82.6,227.85,227.84,28.15160941]
[1738405390645,82.6,227.85,227.83,8.15160941]
[1738405391443,82.6,227.85,227.83,12.54070941]
[1738405391859,82.6,227.85,227.83,17.10637554]
[1738405393365,82.6,227.85,227.84,12.71727554]
[1738405394442,82.6,227.85,227.84,17.10627554]
[1738405394668,82.6,227.85,227.84,20.34742029]
[1738405397363,0.03,227.86,227.84,20.34742029]
[1738405397554,0.03,227.86,227.85,14.44653058]
[1738405398655,0.03,227.86,227.85,17.68767533]
[1738405399060,0.03,227.86,227.85,20.28386219]
[1738405400564,0.03,227.89,227.88,33.53733853]
[1738405400770,0.03,227.89,227.88,46.25461407]
[1738405401147,0.03,227.89,227.88,49.62124882]
[1738405401673,0.03,227.89,227.88,52.21743568]
[1738405401868,0.03,227.89,227.88,56.60563568]
[1738405403269,0.03,227.89,227.88,57.73112568]
[1738405404063,0.03,227.94,227.92,14.53733853]
[1738405404272,0.03,227.94,227.92,30.27461407]
[1738405404769,0.03,227.94,227.92,46.48401436]
[1738405405067,0.03,227.94,227.93,19.17561853]
[1738405406057,0.03,227.94,227.93,22.41676328]
[1738405406875,0.03,227.94,227.93,25.01295014]
[1738405411971,0.03,227.94,227.93,37.73022568]
[1738405413756,0.03,227.94,227.93,33.1420667]
[1738405414956,0.03,227.94,227.93,33.2675567]
[1738405415156,0.03,227.97,227.94,14.66282853]
[1738405415366,0.03,227.97,227.96,20.12549]
[1738405415563,0.03,227.97,227.96,34.32065563]
[1738405416269,0.03,227.97,227.96,35.32065563]
[1738405416475,0.03,227.97,227.96,43.19948038]
[1738405416658,0.0001,227.97,227.96,51.32859694]
[1738405417268,0.0001,227.97,227.96,53.9247838]
[1738405418364,82.6,228.05,228.0,20.0]
[1738405418564,82.6,228.08,228.02,0.12549]
[1738405418762,82.6,228.08,228.02,21.91743509]
[1738405419455,82.6,228.08,228.02,25.15857984]
[1738405419859,82.6,228.08,228.02,29.54407984]
[1738405420371,0.03,228.09,228.07,13.41184853]
[1738405420559,7.18911656,228.18,228.11,20.0]
[1738405420767,1.5964,228.19,228.11,20.0]
[1738405420768,1.5964,228.19,228.14,8.12911656]
[1738405422288,1.5964,228.19,228.12,0.12549]
[1738405422289,1.5964,228.19,228.12,8.12911656]
[1738405423385,8.12911656,228.18,228.12,8.12911656]
[1738405423574,8.12911656,228.18,228.08,13.41184853]
[1738405423575,8.12911656,228.16,228.08,21.54096509]
[1738405424289,8.12911656,228.16,228.11,20.0]
[1738405425590,90.72911656,228.18,228.13,20.0]
[1738405426403,82.6,228.18,228.11,28.12911656]
[1738405426696,90.72911656,228.18,228.11,20.0]
[1738405426902,90.72911656,228.18,228.13,20.0]
[1738405429700,90.72911656,228.18,228.11,8.12911656]
[1738405429701,90.72911656,228.18,228.11,28.12911656]
[1738405430511,8.12911656,228.17,228.13,20.0]
[1738405431010,82.6,228.16,228.13,20.0]
[1738405432211,82.6,228.16,228.11,28.12911656]
[1738405432589,82.6,228.16,228.09,4.3842]
[1738405432590,82.6,228.15,228.12,20.0]
[1738405433302,82.6,228.15,228.13,20.0]
[1738405434219,82.6,228.15,228.11,8.12911656]
[1738405434504,82.6,228.15,228.13,20.0]
[1738405436304,82.6,228.15,228.11,8.12911656]
[1738405436483,82.6,228.15,228.13,20.0]
[1738405436795,90.72911656,228.14,228.11,0.063]
[1738405436973,9.63361656,228.12,228.11,0.063]
[1738405437373,1.5045,228.12,228.11,0.063]
[1738405437598,9.63361656,228.12,228.11,0.063]
[1738405438278,1.5045,228.12,228.11,0.063]
[1738405438478,9.63361656,228.12,228.11,0.063]
[1738405439299,1.5045,228.12,228.11,0.063]
[1738405440713,9.63361656,228.12,228.11,0.063]
[1738405442204,1.5045,228.12,228.11,0.063]
[1738405442680,9.63361656,228.12,228.11,0.063]
[1738405442996,9.63361656,228.12,228.07,3.24553755]
[1738405442997,1.0,228.1,228.07,3.24553755]
[1738405443175,8.12911656,228.08,228.07,3.24553755]
[1738405444308,8.12911656,228.08,227.99,28.12911656]
[1738405444485,8.12911656,228.07,227.99,28.12911656]
[1738405445003,8.12911656,228.08,228.01,8.12911656]
[1738405445193,8.12911656,228.09,228.02,8.12911656]
[1738405445799,8.12911656,228.09,228.02,12.69758867]
[1738405445800,12.69758867,228.09,228.02,12.69758867]
[1738405447905,82.6,228.08,228.05,20.0]
[1738405448106,82.6,228.07,228.05,20.0]
[1738405448687,82.6,228.07,228.03,12.69758867]
[1738405449103,82.6,228.07,228.06,12.69758867]
[1738405449309,82.6,228.07,228.06,46.1094372]
[1738405449691,82.6,228.07,228.06,26.1094372]
[1738405450100,82.6,228.07,228.06,29.37287327]
[1738405450299,82.6,228.07,228.06,29.74934327]
[1738405452118,82.6,228.11,228.09,20.0]
[1738405452413,82.6,228.11,228.1,12.69758867]
[1738405452612,0.03,228.12,228.1,12.69758867]
[1738405452613,0.03,228.12,228.1,32.69758867]
[1738405452806,0.03,228.12,228.11,12.69758867]
[1738405453799,0.03,228.12,228.11,30.8697072]
[1738405454004,0.03,228.12,228.11,34.13314327]
[1738405454794,0.03,228.12,228.11,34.79050905]
[1738405455198,0.03,228.17,228.15,20.0]
[1738405455398,0.03,228.17,228.16,12.69758867]
[1738405456211,0.03,228.17,228.16,33.75567327]
[1738405456515,0.03,228.17,228.16,34.13214327]
[1738405459105,0.03,228.17,228.16,34.25763327]
[1738405461050,0.03,228.17,228.16,35.25763327]
[1738405462523,0.03,228.17,228.16,65.25763327]
[1738405462724,0.0001,228.17,228.16,66.25763327]
[1738405463020,82.6,228.3,228.27,0.37647]
[1738405463225,82.6,228.34,228.32,20.0]
[1738405463420,82.6,228.34,228.32,32.69758867]
[1738405464127,82.6,228.34,228.32,37.07738867]
[1738405464713,82.6,228.34,228.33,13.41184853]
[1738405465402,82.6,228.34,228.33,13.78831853]
[1738405466003,0.03,228.35,228.33,13.41184853]
[1738405466309,0.03,228.35,228.34,12.69758867]
[1738405466509,0.03,228.35,228.34,26.1094372]
[1738405467603,0.03,228.35,228.34,12.69758867]
[1738405467827,0.03,228.35,228.31,12.69758867]
[1738405468453,0.03,228.35,228.34,20.0]
[1738405469003,12.72758867,228.35,228.27,12.69758867]
[1738405469334,95.29758867,228.34,228.3,20.0]
[1738405469835,95.29758867,228.34,228.27,3.0]
[1738405470014,12.69758867,228.33,228.27,13.41184853]
[1738405470210,12.69758867,228.32,228.27,13.41184853]
[1738405470405,12.69758867,228.32,228.26,13.41184853]
[1738405470620,12.69758867,228.31,228.24,13.07405867]
[1738405470834,12.69758867,228.31,228.25,3.0]
[1738405471020,12.69758867,228.31,228.24,3.0]
[1738405471417,12.69758867,228.28,228.21,17.07928867]
[1738405471737,12.69758867,228.28,228.22,3.0]
[1738405472535,12.69758867,228.28,228.24,20.0]
[1738405473238,12.69758867,228.29,228.24,20.0]
[1738405474144,12.69758867,228.29,228.25,20.0]
[1738405475023,12.69758867,228.29,228.22,15.69758867]
[1738405476343,12.69758867,228.29,228.25,20.0]
[1738405477110,84.2592,228.3,228.24,12.69758867]
[1738405477316,84.2592,228.3,228.22,3.0]
[1738405477317,84.2592,228.3,228.25,32.69758867]
[1738405477631,84.2592,228.3,228.25,20.0]
[1738405477939,96.95678867,228.3,228.25,20.0]
[1738405478735,12.69758867,228.29,228.25,20.0]
[1738405478935,96.95678867,228.3,228.25,20.0]
[1738405480119,12.69758867,228.29,228.25,20.0]
[1738405480542,84.2592,228.3,228.25,20.0]
[1738405480543,96.95678867,228.3,228.25,20.0]
[1738405481445,82.6,228.29,228.25,20.0]
[1738405485751,82.6,228.29,228.27,20.0]
[1738405486048,82.6,228.28,228.27,20.0]
[1738405486434,82.6,228.28,228.26,17.07848867]
[1738405486619,82.6,228.28,228.27,13.41184853]
[1738405488041,82.6,228.31,228.29,20.0]
[1738405488227,82.6,228.31,228.29,32.69758867]
[1738405488748,82.6,228.31,228.3,13.41184853]
[1738405490244,82.6,228.31,228.3,13.66282853]
[1738405490550,0.03,228.32,228.31,18.04282853]
[1738405490754,0.03,228.32,228.31,30.7404172]
[1738405492032,0.03,228.32,228.31,26.1094372]
[1738405492339,0.03,228.32,228.31,26.3604172]
[1738405492950,0.03,228.32,228.31,26.1094372]
[1738405497340,0.03,228.32,228.31,26.3604172]
[1738405497735,0.03,228.32,228.31,30.7404172]
[1738405498149,81.66,228.38,228.34,20.0]
[1738405498354,81.66,228.37,228.34,20.0]
[1738405500653,94.35758867,228.37,228.34,20.0]
[1738405501255,81.66,228.37,228.34,20.0]
[1738405502057,12.69758867,228.36,228.31,3.0]
[1738405502244,12.69758867,228.32,228.26,3.0]
[1738405502436,94.35758867,228.31,228.26,20.0]
[1738405502647,81.66,228.31,228.28,20.0]
[1738405503442,94.35758867,228.31,228.27,20.0]
[1738405503772,81.66,228.31,228.28,20.0]
[1738405504855,81.66,228.31,228.29,3.25116543]
[1738405505854,81.66,228.31,228.3,3.25116543]
[1738405510247,81.66,228.31,228.3,3.31416543]
[1738405520075,8.10826666,228.34,228.3,3.31416543]
[1738405520275,8.10826666,228.34,228.3,23.31416543]
[1738405520780,8.10826666,228.34,228.31,3.25116543]
[1738405520978,82.6,228.33,228.31,3.25116543]
[1738405521568,82.6,228.33,228.3,0.063]
[1738405524373,82.6,228.33,228.31,3.25859442]
[1738405525488,82.6,228.33,228.32,3.25859442]
[1738405526089,0.03,228.35,228.32,3.25859442]
[1738405526768,0.03,228.35,228.3,0.063]
[1738405528196,0.03,228.35,228.31,3.26216561]
[1738405529479,0.03,228.35,228.32,3.26216561]
[1738405530594,0.03,228.35,228.33,3.26216561]
[1738405531889,82.6,228.34,228.33,3.26216561]
[1738405532095,82.6,228.34,228.31,20.0]
[1738405533298,82.6,228.34,228.32,3.26502632]
[1738405533791,90.70826666,228.34,228.32,3.26502632]
[1738405534503,82.6,228.34,228.32,3.26502632]
[1738405534991,82.6,228.34,228.33,3.26502632]
[1738405537995,8.13826666,228.35,228.33,3.26502632]
[1738405539203,8.13826666,228.35,228.34,3.26502632]
[1738405545694,0.03,228.35,228.34,3.26502632]
[1738405549901,16.89755666,228.35,228.34,2.632e-05]
[1738405550106,22.0,228.33,228.32,0.063]
[1738405550285,30.10826666,228.33,228.32,0.063]
[1738405550481,29.10826666,228.33,228.32,0.063]
[1738405550687,8.10826666,228.33,228.32,0.063]
[1738405552608,7.6638,228.35,228.32,0.063]
[1738405552609,9.75166666,228.35,228.32,0.063]
[1738405552809,1.6434,228.35,228.32,0.063]
[1738405553514,0.03,228.35,228.32,0.063]
[1738405556206,8.13826666,228.35,228.32,0.063]
[1738405556820,8.10826666,228.34,228.32,0.063]
[1738405556999,8.13826666,228.35,228.32,0.063]
[1738405558216,0.03,228.35,228.32,0.063]
[1738405559809,0.03,228.35,228.32,8.17126666]
[1738405560422,0.03,228.35,228.34,8.10826666]
[1738405560633,0.03,228.35,228.34,21.52011519]
[1738405560805,0.03,228.35,228.34,25.05582873]
[1738405561297,0.03,228.35,228.34,3.28473354]
[1738405561698,0.03,228.35,228.34,23.28473354]
[1738405562414,0.03,228.35,228.34,44.86784873]
[1738405562910,0.03,228.35,228.34,36.75958207]
[1738405564018,0.03,228.35,228.34,45.11882873]
[1738405567121,0.03,228.35,228.34,45.24431873]
[1738405568119,0.03,228.35,228.34,37.01056207]
[1738405568424,0.03,228.35,228.34,45.11882873]
[1738405572034,0.03,228.35,228.34,49.49822873]
[1738405573032,0.03,228.35,228.34,49.62371873]
[1738405573405,0.03,228.35,228.34,49.49822873]
[1738405574002,0.03,228.35,228.34,41.38996207]